Cogmind - Beta 13 @@@ ROGUE MODE // 2024.05.05 @ 17:12:42 Player: sercli123 Result: Destroyed by Y-45 Defender with Heavy Assault Rifle Performance ------------- Evolutions (0) 0 Regions Visited (4) 800 Robots Destroyed (25) 125 Value Destroyed (423) 423 Prototype IDs (6) 120 Alien Tech Used (0) 0 Bonus (0) 0 TOTAL SCORE: 1468 Bonus ------- None Cogmind --------- Core Integrity 0/250 Matter 263/300 Energy 32/100 System Corruption 0% Temperature Cool (9) Movement Rolling (80) Location -9/Mines Parts ------- > --- POWER (1) -------- (None) > --- PROPULSION (2) --- Wheel Wheel > --- UTILITY (2) ------ Improved Heat Sink Medium Storage Unit > --- WEAPON (2) ------- Heavy EM Pulse Gun > --- INVENTORY (10) --- Large Storage Unit High-capacity Battery (250) Weight Redist. System Visual Processing Unit Hacking Suite Peak State ------------ > --- POWER ------------ Ion Engine > --- PROPULSION ------- Wheel Wheel > --- UTILITY ---------- Improved Heat Sink Medium Storage Unit > --- WEAPON ----------- Heavy EM Pulse Gun Heavy EM Pulse Gun > --- INVENTORY -------- Ion Engine Heat Sink Large Storage Unit High-capacity Battery Weight Redist. System Weapon Shielding Hacking Suite Heavy EM Pulse Gun Grenade Launcher [Rating: 12] Favorites ----------- Power Ion Engine Engine Ion Engine Propulsion Wheel Wheel Wheel Utility Medium Storage Unit Device Improved Heat Sink Storage Medium Storage Unit Weapon Heavy EM Pulse Gun Energy Gun Heavy EM Pulse Gun Ballistic Gun Assault Rifle Ballistic Cannon Light Cannon Launcher Grenade Launcher Build | -11 -10 -10 -10 -9 ------- Run | Yrd Mat Min Exi Min Slots Evolved . | . . . . . Power . | . . . . . Propulsion . | . . . . . Utility . | . . . . . Weapon . | . . . . . Parts Attached 25 | 7 13 . 1 4 Power 3 | 1 1 . 1 . Engine 3 | 1 1 . 1 . Core . | . . . . . Reactor . | . . . . . Propulsion 10 | 2 6 . . 2 Treads . | . . . . . Leg . | . . . . . Wheel 10 | 2 6 . . 2 Hover . | . . . . . Flight . | . . . . . Utility 3 | 1 2 . . . Device 1 | . 1 . . . Storage 2 | 1 1 . . . Processor . | . . . . . Hackware . | . . . . . Protection . | . . . . . Artifact . | . . . . . Weapon 9 | 3 4 . . 2 Energy Gun 5 | 2 2 . . 1 Energy Cannon . | . . . . . Ballistic Gun 2 | 1 1 . . . Ballistic Cannon 1 | . 1 . . . Launcher 1 | . . . . 1 Special Weapon . | . . . . . Impact Weapon . | . . . . . Slashing Weapon . | . . . . . Piercing Weapon . | . . . . . Special Melee Weapon . | . . . . . Unidentified Prototypes . | . . . . . Parts Lost 5 | . 1 . . 4 Power 1 | . . . . 1 Propulsion 1 | . 1 . . . Utility . | . . . . . Weapon 3 | . . . . 3 Highest Loss Streak 2 | . 1 . . 2 To Critical Strikes . | . . . . . Average Slot Usage (%) 90 | . 93 100 85 85 Engine 9 | . 14 14 . 12 Wheel 27 | . 27 28 28 28 Device 11 | . 8 14 14 14 Storage 14 | . 14 14 14 14 Energy Gun 18 | . 14 28 28 12 Ballistic Gun 3 | . 6 . . . Ballistic Cannon 3 | . 6 . . . Naked Turns . | . . . . . Heaviest Build 22 | 14 22 22 22 22 Greatest Support 26 | 10 26 26 26 26 Greatest Overweight (x) 1 | 1 1 . . . Average Overweight (x) . | . . . . . Largest Inventory Capacity 10 | 8 10 10 10 10 Average Capacity 9 | 7 9 10 10 10 Most Carried 10 | 6 10 9 10 9 Average Carried 8 | 3 8 9 9 8 Final Capacity 10 | 8 10 10 10 10 Final Carried 9 | 5 9 9 9 5 Class Distribution -------------------- 100% | Mutant Dominant Class ---------------- Mutant | -10/Materials Mutant | -10/Mines Mutant | -10/Exiles Mutant | -9/Mines Resources | -11 -10 -10 -10 -9 ----------- Run | Yrd Mat Min Exi Min Matter Collected 681 | 266 342 . . 73 Remotely . | . . . . . Salvage Created 647 | . 539 . . 108 Parts 41 | . 39 . . 2 Haulers Intercepted 1 | . 1 . . . Recyclers Shooed . | . . . . . Parts Field Recycled . | . . . . . Retrieved Matter . | . . . . . Parts Self-Destructed . | . . . . . Prevented . | . . . . . Kills | -11 -10 -10 -10 -9 ------- Run | Yrd Mat Min Exi Min Combat Hostiles Destroyed 13 | . 9 . . 4 Guns 7 | . 7 . . . Cannons 2 | . 2 . . . AOE 4 | . . . . 4 Classes Destroyed 9 | . 8 . . 1 Worker 4 | . 4 . . . Tunneler 1 | . 1 . . . Hauler 1 | . 1 . . . Recycler 2 | . 2 . . . Operator 1 | . 1 . . . Watcher 3 | . 3 . . . Swarmer 6 | . 6 . . . Grunt 6 | . 3 . . 3 Duelist 1 | . . . . 1 Best Kill Streak 4 | . 4 . . 4 Combat Bots Only 4 | . 4 . . 4 Max Kills in Single Turn 2 | . 1 . . 2 Gunslinging . | . . . . . Exploded 2 | . . . . 2 Melee . | . . . . . Uniques/NPCs Destroyed . | . . . . . Combat | -11 -10 -10 -10 -9 -------- Run | Yrd Mat Min Exi Min Hostile Shots Fired 93 | . 48 . . 45 Missed 26 | . 16 . . 10 Damage Taken 867 | . 333 . . 534 Core 254 | . 94 . . 160 Absorbed by Shields . | . . . . . Core Remaining (%) 100 | 100 . . . . Volleys Fired 74 | . 56 . . 18 Largest 2 | . 2 . . 2 Hottest 100 | . 100 . . 90 Shots Fired 134 | . 112 . . 22 Gun 101 | . 87 . . 14 Cannon 25 | . 25 . . . Launcher 8 | . . . . 8 Special . | . . . . . Kinetic 49 | . 49 . . . Thermal 41 | . 41 . . . Explosive 8 | . . . . 8 Electromagnetic 36 | . 22 . . 14 Robot Hit Streak 9 | . 9 . . 7 Robot Miss Streak 10 | . 10 . . 2 Penetration Max . | . . . . . Secondary Targets . | . . . . . Shots Hit Robots 74 | . 58 . . 16 Core Hits 37 | . 25 . . 12 Critical Kills . | . . . . . Critical Parts Destroyed . | . . . . . Critical Strikes 8 | . 8 . . . Burn 5 | . 5 . . . Blast 2 | . 2 . . . Corrupt 1 | . 1 . . . Melee Attacks . | . . . . . Impact . | . . . . . Slashing . | . . . . . Piercing . | . . . . . Sneak Attacks . | . . . . . Combat Hostiles . | . . . . . Follow-up Attacks . | . . . . . Damage Inflicted 1443 | . 826 . . 617 Guns 785 | . 670 . . 115 Cannons 156 | . 156 . . . Explosions 502 | . . . . 502 Melee . | . . . . . Ramming . | . . . . . Kinetic 342 | . 342 . . . Thermal 359 | . 315 . . 44 Explosive 458 | . . . . 458 Electromagnetic 284 | . 169 . . 115 Impact . | . . . . . Slashing . | . . . . . Piercing . | . . . . . Highest Corruption . | . . . . . Average Corruption . | . . . . . Corruption Purged . | . . . . . Corruption Blocked . | . . . . . Overload Shots . | . . . . . Overflow Damage . | . . . . . Projectiles . | . . . . . Explosions . | . . . . . Melee . | . . . . . Knockbacks 1 | . 1 . . . Impact . | . . . . . Kinetic 1 | . 1 . . . Secondary . | . . . . . Self-Inflicted Damage 17 | . . . . 17 Shots 3 | . . . . 3 Rammed . | . . . . . Targets Rammed . | . . . . . Kicked . | . . . . . Crushed . | . . . . . Highest Temperature 413 | . 413 . . . Average Temperature 179 | . 179 . . . Received Heat Transfer 291 | . 96 . . 195 Effects 5 | . 5 . . . Shutdowns 2 | . 2 . . . Matter Decay 1 | . 1 . . . Damage (minor) 2 | . 2 . . . Siege Activations . | . . . . . Robots Corrupted . | . . . . . Combat Hostiles . | . . . . . Parts Fried 1 | . 1 . . . Impact Corruptions . | . . . . . Robots Melted . | . . . . . Combat Hostiles . | . . . . . Parts Melted 7 | . 7 . . . Heat Transferred 1345 | . 1295 . . 50 Parts Sabotaged . | . . . . . Parts Stolen . | . . . . . Parts Stripped . | . . . . . Power Chain Reactions 1 | . . . . 1 Alert | -11 -10 -10 -10 -9 ------- Run | Yrd Mat Min Exi Min Peak Influence 195 | . 195 51 . 178 Initial 51 | . . 51 . . Average 74 | . 86 51 . 63 Maximum Alert Level . | . . . . . Low Security (%) 100 | 100 100 100 . 100 Level 1 . | . . . . . Level 2 . | . . . . . Level 3 . | . . . . . Level 4 . | . . . . . Level 5 . | . . . . . High Security . | . . . . . Max Security . | . . . . . Squads Dispatched 1 | . 1 . . . Investigation . | . . . . . Extermination . | . . . . . Reinforcement 1 | . 1 . . . Assault . | . . . . . Garrison . | . . . . . Intercept . | . . . . . Searches Triggered . | . . . . . Construction Impeded . | . . . . . Haulers Reinforced . | . . . . . Active Scanning Responses . | . . . . . Cargo Convoy Interrupts . | . . . . . Stealth | -11 -10 -10 -10 -9 --------- Run | Yrd Mat Min Exi Min Distress Signals . | . . . . . Communications Jammed . | . . . . . Distress Signals . | . . . . . Times Spotted 30 | . 20 . . 10 Peak Tracking Total 7 | . 5 . . 7 Tactical Retreats 5 | . 3 . . 2 Traps | -11 -10 -10 -10 -9 ------- Run | Yrd Mat Min Exi Min Traps Triggered . | . . . . . Indirectly . | . . . . . Trap Hack Attempts . | . . . . . Triggered . | . . . . . Disarmed . | . . . . . Reprogrammed . | . . . . . Reused . | . . . . . Traps Extracted . | . . . . . Installed . | . . . . . Triggered . | . . . . . Machines | -11 -10 -10 -10 -9 ---------- Run | Yrd Mat Min Exi Min Machines Disabled 1 | . . . . 1 Max in Single Turn 1 | . . . . 1 Machines Repaired . | . . . . . Machines Dismantled . | . . . . . Machines Sabotaged . | . . . . . Overloaded Fab Kills . | . . . . . Hacking | -11 -10 -10 -10 -9 --------- Run | Yrd Mat Min Exi Min Machines Accessed 11 | . 7 . 4 . Terminals 7 | . 7 . . . Fabricators . | . . . . . Repair Stations . | . . . . . Recycling Units . | . . . . . Scanalyzers . | . . . . . Garrison Access . | . . . . . Total Hacks 67 | . 18 . 49 . Successful 58 | . 9 . 49 . Failed 9 | . 9 . . . Catastrophic 3 | . 3 . . . Database Lockouts . | . . . . . Manual 1 | . 1 . . . Terminals 18 | . 18 . . . Fabricators . | . . . . . Repair Stations . | . . . . . Recycling Units . | . . . . . Scanalyzers . | . . . . . Garrison Access . | . . . . . Terminal Hacks 58 | . 9 . 49 . Record 49 | . . . 49 . Robot Analysis 1 | . 1 . . . Prototype ID Bank 3 | . 3 . . . Branch Access Points 1 | . 1 . . . Emergency Access Points 1 | . 1 . . . Locate Traps 1 | . 1 . . . Patrol Status 2 | . 2 . . . Fabricator Hacks . | . . . . . Repair Station Hacks . | . . . . . Recycling Unit Hacks . | . . . . . Scanalyzer . | . . . . . Garrison Access Hacks . | . . . . . Unauthorized Hacks . | . . . . . Terminals . | . . . . . Fabricators . | . . . . . Repair Stations . | . . . . . Recycling Units . | . . . . . Scanalyzers . | . . . . . Garrison Access . | . . . . . Data Cores Recovered 1 | . 1 . . . Used . | . . . . . Hacking Detections 5 | . 5 . . . Full Trace Events . | . . . . . Feedback Events . | . . . . . Feedback Blocked . | . . . . . Robot Schematics Acquired . | . . . . . Robots Built . | . . . . . Authchips . | . . . . . Time . | . . . . . Total Robot Build Rating . | . . . . . Part Schematics Acquired . | . . . . . Parts Built . | . . . . . Authchips . | . . . . . Time . | . . . . . Total Part Build Rating . | . . . . . Parts Repaired . | . . . . . Time . | . . . . . Parts Recycled . | . . . . . Recycled Matter . | . . . . . Retrieved Matter . | . . . . . Retrieved Components . | . . . . . Parts Scanalyzed . | . . . . . Part Schematics Acquired . | . . . . . Parts Damaged . | . . . . . Bothacking | -11 -10 -10 -10 -9 ------------ Run | Yrd Mat Min Exi Min Used RIF Installer . | . . . . . Robots Hacked . | . . . . . Non-combat . | . . . . . Combat . | . . . . . Robot Hacks Applied . | . . . . . Relay Couplers Released . | . . . . . Fabnet Peak Effective % . | . . . . . Robots Rewired . | . . . . . Allies Hacked . | . . . . . Hacks Repelled . | . . . . . Allies | -11 -10 -10 -10 -9 -------- Run | Yrd Mat Min Exi Min Total Allies . | . . . . . Largest Group . | . . . . . Highest-Rated Group . | . . . . . Highest-Rated Ally . | . . . . . Total Orders . | . . . . . Ally Attacks . | . . . . . Total Damage . | . . . . . Kills . | . . . . . Allies Corrupted . | . . . . . Allies Melted . | . . . . . Intel | -11 -10 -10 -10 -9 ------- Run | Yrd Mat Min Exi Min Robot Analysis Total 1 | . 1 . . . Derelict Logs Recovered 1 | . . 1 . . Drone Launches . | . . . . . Drone Recoveries . | . . . . . Exploration | -11 -10 -10 -10 -9 ------------- Run | Yrd Mat Min Exi Min Turns Passed 1939 | 115 1034 76 578 136 Spaces Moved 1764 | 72 875 85 638 94 Core 26 | 26 . . . . Treads . | . . . . . Legs . | . . . . . Wheels 1738 | 46 875 85 638 94 Hover . | . . . . . Flight . | . . . . . Fastest Speed 50 | 50 80 90 90 80 Average Speed 89 | 83 89 90 90 89 Slowest Speed 100 | 100 95 90 90 90 Overloaded Moves . | . . . . . Propulsion Burnouts . | . . . . . Robots Hopped . | . . . . . Cave-ins Triggered . | . . . . . Exploration Rate (%) 48 | 5 86 33 92 28 Regions Visited 4 Branch Regions 3 Pre-discovered Areas 1 | . . . 1 . Known Exits Taken 1 | . 1 . . . Unknown Exits Taken 3 | 1 . 1 1 . Scrap Searched . | . . . . . Spaces Dug . | . . . . . Terrain Destroyed 67 | . . . . 67 Melee . | . . . . . Projectile . | . . . . . AOE 67 | . . . . 67 Terrain Rammed . | . . . . . Walls Destroyed . | . . . . . Machines Disabled . | . . . . . Actions | -11 -10 -10 -10 -9 --------- Run | Yrd Mat Min Exi Min Total 1994 | 126 1017 84 642 125 Wait 86 | 38 41 . . 7 Move 1760 | 71 874 84 637 94 Hop . | . . . . . Pick Up 29 | 9 18 . 2 . Fast Attach 2 | 1 1 . . . Attach 12 | 5 4 . 1 2 Detach 1 | 1 . . . . Swap 11 | 1 8 . . 2 Drop 19 | . 15 . 2 2 Fire 74 | . 56 . . 18 Melee . | . . . . . Ram . | . . . . . Kick . | . . . . . Crush . | . . . . . Escape Stasis . | . . . . . Rewire . | . . . . . Trap . | . . . . . Miscellaneous . | . . . . . Route ------- -11/Scrapyard -10/Materials (discovered 2 exits: [*Mat] / *Min) -10/Mines -10/Exiles (discovered 2 exits: [*Min x2]) -9/Mines History --------- Turn | Location | Event 9 | -11/Scrapyard | Discovered new exit (range 16) 116 | -11/Scrapyard | Entered Materials 198 | -10/Materials | Identified exit to Mines 332 | -10/Materials | Build established: Mutant 586 | -10/Materials | Discovered new exit (range 10) 1150 | -10/Materials | Entered Mines 1160 | -10/Mines | Learned 4 Materials zone layouts 1197 | -10/Mines | Met a Derelict bent on vengeance 1223 | -10/Mines | Deemed a non-threat by the Exiles lab entrance 1223 | -10/Mines | Discovered new exit (range 5) 1226 | -10/Mines | Entered Exiles 1253 | -10/Exiles | Discovered new exit (range 15) 1282 | -10/Exiles | Met 8R-AWN 1300 | -10/Exiles | Met EX-HEX 1345 | -10/Exiles | Met EX-DEC 1392 | -10/Exiles | Met EX-BIN 1504 | -10/Exiles | Learned location of Zion (-6) 1545 | -10/Exiles | Discovered new exit (range 15) 1611 | -10/Exiles | Visited The Gauntlet 1804 | -10/Exiles | Entered Mines 1886 | -9/Mines | Core integrity fell below 50% 1937 | -9/Mines | Core integrity fell below 20% 1940 | -9/Mines | Destroyed by Y-45 Defender with Heavy Assault Rifle Last Messages --------------- 01845_ Chain reaction triggered in Imp. Ion Engine. 01853_ Hvy. EM Pulse Gun destroyed. 01861_ T-07 Excavator is excavating. 01889_ Seismic Survey Station disabled. 01891_ G-34 Mercenary destroyed. 01900_ G-47 Trooper destroyed. 01900_ G-34 Mercenary destroyed. 01905_ L-31 Rogue destroyed. 01907_ Acquired 34 matter. 01908_ The unstable cave ceiling collapses. 01908_ Acquired 14 matter. 01910_ Acquired 12 matter. 01912_ Acquired 10 matter. 01913_ Acquired 3 matter. 01913_ Dropped Wheel. 01914_ Dropped Com. Wheel. 01920_ The unstable cave ceiling collapses. 01921_ Grenade Launcher destroyed. 01921_ Ion Engine destroyed. 01922_ The unstable cave ceiling collapses. Map ----- +----------------------------------------------------+ | ???????????# #????????## #???????????????????? | | ??????????? #?????????## #???????????????????? | | ??????????? #??????????# #???????????????????? | | ??????????? #??????????# #???????????????????? | | ??????????? ??????????# ####????????????????? | | ?????????? ??????????# #????????????????? | | ???????????? ???????????#### ##"""###########?? | | ??????????????????????????????# #?? | | ??????????????????????????????####"""######### #?? | | ?????????????????????????????????????????????# ##? | | ????????????????????????????????????????????## ## | | ????????????????????????????????????????????# # | | ???????????????????????????????????????????## # | | ??????????????????????? #########?????????## # | | ???????????????????????? #????????## # | | ??????????????????????????? #???????## ## | | ?????????????????????????????# ######### ##? | | ?????????????????????????????# #? | | ?????????????????????????????# ### #? | | ?????????????????????????????## ####### #?# #? | | ????????????????????????????### ###???## ##?####? | | ??????????????????????###??? ##???####??????? | | ?????????????????###### #### ##????????????? | | ?????????????????# #????????????? | | ?????????????????# Y #?????????????? | | ?????????????????# = @# # #?????????????? | | ?????????????????# ==Y % #?????????????? | | ?????????????????# # #= #?????????????? | | ?????????????????# ####?????????????? | | ?????????????????# ####????????????????? | | ?????????????????#############???????????????????? | | ?????????????????????????????????????????????????? | | | | | | | | | | | | | | | | | | | | | | | | | | | | | | | | | | | | | +----------------------------------------------------+ Best States ------------- Heat Dissipation 39 Energy Generation 10 Energy Capacity 250 Matter Stores 300 Matter Capacity 300 Sight Range 16 Terrain Scan Density 10 Evasion (%) 50 Item Schematics ----------------- None Robot Schematics ------------------ None Fabricated ------------ Nothing Alien Tech Used ----------------- None Achievements -------------- None Challenges ------------ None Game ------ Seed ExplosiveWeldingLoader Manual? 0 Play Time 00:33:46 Cumulative 17.8 hours Start 2024.05.05 @ 16:37:57 End 2024.05.05 @ 17:12:42 Sessions 1 Manual Loads 0 Difficulty Rogue Special Mode None Game No. 10 Rogue 10 Adventurer 0 Explorer 0 Win Type - Total 0 Types 0/0/0/0/0/0/0/0/0 Lore% 15 Gallery% 17 Achievement% 14 Wizard Run 0 Options --------- Layout 0 ASCII 0 Keyboard 0 Movement Mouse Keybinds 0 Fullscreen 2 Font 18/SmallcapsGlow Map View 38x25 Zoom Use 79% Tactical HUD 1 Map Filters NONE Filters NONE Steam 0 RUN: 508b27bc-dbfc-4d52-8af6-92e7978e5e43